fUSD/lending_fUSD_20260527
["ID","MTS","AMOUNT","RATE_DAILY","PERIOD"]
[423070360,1779817842000,-702.2796721,0.000388,2]
[423070370,1779817842000,-2348.77,0.000389,120]
[423070369,1779817842000,-2348.776,0.000389,120]
[423070371,1779817842000,-1009.67,0.000389,120]
[423070372,1779817842000,-2900.0,0.000389,14]
[423070359,1779817842000,-2900.0,0.000388,14]
[423070363,1779817842000,-508.0,0.00038812,16]
[423070362,1779817842000,-250.0,0.00038808,30]
[423070361,1779817842000,-6565.03276849,0.00038805,30]
[423070364,1779817842000,-321.25806271,0.00038858,120]
[423070366,1779817842000,-14256.94481353,0.00038898,2]
[423070367,1779817842000,-153.0,0.000389,120]
[423070368,1779817842000,-2348.776,0.000389,120]
[423070365,1779817842000,-241.0,0.00038898,2]
[423070373,1779817842000,-1500.0,0.000389,28]
[423070377,1779817842000,-430.0,0.00038928,2]
[423070375,1779817842000,-1548.0,0.00038904,30]
[423070376,1779817842000,-156.56,0.00038908,120]
[423070378,1779817842000,-702.27967208,0.00038948,2]
[423070374,1779817842000,-19415.0,0.00038904,120]
[423070379,1779817842000,-152.0,0.0003895,30]
[423070384,1779817842000,-184.0,0.00038965,2]
[423070383,1779817842000,-5000.0,0.00038961,2]
[423070385,1779817842000,-3000.0,0.00038999,30]
[423070382,1779817842000,-5000.0,0.00038961,2]
[423070381,1779817842000,-5000.0,0.00038961,2]
[423070331,1779817842000,-5000.0,0.00038563,2]
[423070355,1779817842000,-250.0,0.000388,2]
[423070351,1779817842000,-150.0,0.00038786,120]
[423070380,1779817842000,-156.56,0.00038958,120]
[423070349,1779817842000,-150.0,0.00038753,120]
[423070352,1779817842000,-40006.46724358,0.0003879,2]
[423070332,1779817842000,-5000.0,0.00038563,2]
[423070325,1779817842000,-1922.59580885,0.00038461,120]
[423070324,1779817842000,-150.0,0.00038443,120]
[423070330,1779817842000,-5786.0,0.00038548,120]
[423070327,1779817842000,-2000.0,0.000385,48]
[423070328,1779817842000,-2000.0,0.000385,60]
[423070334,1779817842000,-5000.0,0.00038563,2]
[423070344,1779817842000,-150.0,0.00038679,7]
[423070333,1779817842000,-5000.0,0.00038563,2]
[423070345,1779817842000,-150.0,0.00038679,7]
[423070335,1779817842000,-14900.0,0.000386,14]
[423070337,1779817842000,-1548.0,0.0003863,30]
[423070338,1779817842000,-3171.4394,0.0003864,30]
[423070326,1779817842000,-164.52974775,0.00038463,2]
[423070340,1779817842000,-150.0,0.00038679,7]
[423070339,1779817842000,-150.0,0.00038679,7]
[423070348,1779817842000,-2900.0,0.000387,14]
[423070353,1779817842000,-49088.0,0.000388,30]
[423070357,1779817842000,-250.0,0.000388,2]
[423070354,1779817842000,-177.0,0.000388,120]
[423070350,1779817842000,-226.0,0.00038781,2]
[423070356,1779817842000,-250.0,0.000388,2]
[423070342,1779817842000,-150.0,0.00038679,7]
[423070347,1779817842000,-288.0,0.00038692,10]
[423070341,1779817842000,-150.0,0.00038679,7]
[423070358,1779817842000,-250.0,0.000388,2]
[423070343,1779817842000,-150.0,0.00038679,7]
[423070346,1779817842000,-150.51859284,0.00038679,7]
[423070432,1779817843000,-577.86912512,0.00038999,30]
[423070423,1779817843000,-1030.0,0.00038999,30]
[423070428,1779817843000,-500.0,0.00038999,30]
[423070418,1779817843000,-151.0,0.00038999,30]
[423070431,1779817843000,-1068.11,0.00038999,30]
[423070427,1779817843000,-500.0,0.00038999,30]
[423070422,1779817843000,-8320.70371556,0.00038999,30]
[423070425,1779817843000,-539.24,0.00038999,30]
[423070420,1779817843000,-283.14428044,0.00038999,30]
[423070424,1779817843000,-200.0009282,0.00038999,30]
[423070421,1779817843000,-151.0,0.00038999,30]
[423070437,1779817843000,-162.380719,0.00038999,30]
[423070444,1779817843000,-151.0,0.00038999,30]
[423070435,1779817843000,-160.0,0.00038999,30]
[423070436,1779817843000,-151.0,0.00038999,30]
[423070434,1779817843000,-8628.56975304,0.00038999,30]
[423070443,1779817843000,-1555.5,0.00038999,30]
[423070440,1779817843000,-500.0,0.00038999,30]
[423070438,1779817843000,-1107.63007,0.00038999,30]
[423070442,1779817843000,-500.0,0.00038999,30]
[423070441,1779817843000,-559.19188,0.00038999,30]
[423070439,1779817843000,-151.0,0.00038999,30]
[423070429,1779817843000,-156.587,0.00038999,30]
[423070446,1779817843000,-8947.8268339,0.00038999,30]
[423070433,1779817843000,-214.99137685,0.00038999,30]
[423070430,1779817843000,-1500.0,0.00038999,30]
[423070394,1779817843000,-7195.23582089,0.00038999,30]
[423070409,1779817843000,-151.0,0.00038999,30]
[423070445,1779817843000,-165.92,0.00038999,30]
[423070386,1779817843000,-3111.0,0.00038999,30]
[423070388,1779817843000,-6000.0,0.00038999,30]
[423070398,1779817843000,-200.0,0.00038999,30]
[423070400,1779817843000,-7737.53354947,0.00038999,30]
[423070387,1779817843000,-3226.107,0.00038999,30]
[423070402,1779817843000,-200.0,0.00038999,30]
[423070389,1779817843000,-869.03960194,0.00038999,30]
[423070390,1779817843000,-6222.0,0.00038999,30]
[423070393,1779817843000,-6938.51091696,0.00038999,30]
[423070392,1779817843000,-6690.945918,0.00038999,30]
[423070395,1779817843000,-7461.45954626,0.00038999,30]
[423070396,1779817843000,-200.0,0.00038999,30]
[423070391,1779817843000,-6452.214,0.00038999,30]
[423070397,1779817843000,-500.0,0.00038999,30]
[423070406,1779817843000,-500.0,0.00038999,30]
[423070408,1779817843000,-8023.8222908,0.00038999,30]
[423070404,1779817843000,-200.0,0.00038999,30]
[423070415,1779817843000,-500.0,0.00038999,30]
[423070417,1779817843000,-500.0,0.00038999,30]
[423070405,1779817843000,-271.84344071,0.00038999,30]
[423070407,1779817843000,-200.0,0.00038999,30]
[423070416,1779817843000,-151.0,0.00038999,30]
[423070413,1779817843000,-500.0,0.00038999,30]
[423070411,1779817843000,-520.0,0.00038999,30]
[423070426,1779817843000,-151.0,0.00038999,30]
[423070448,1779817843000,-309.87253838,0.00038999,30]
[423070451,1779817843000,-500.0,0.00038999,30]
[423070456,1779817843000,-151.0,0.00038999,30]
[423070478,1779817843000,-198.97225456,0.00038999,30]
[423070480,1779817843000,-500.0,0.00038999,30]
[423070482,1779817843000,-151.0,0.00038999,30]
[423070484,1779817843000,-646.65982734,0.00038999,30]
[423070483,1779817843000,-1865.36488656,0.00038999,30]
[423070493,1779817843000,-1434.60864806,0.00038999,30]
[423070488,1779817843000,-151.0,0.00038999,30]
[423070485,1779817843000,-500.0,0.00038999,30]
[423070487,1779817843000,-500.0,0.00038999,30]
[423070486,1779817843000,-500.0,0.00038999,30]
[423070489,1779817843000,-500.0,0.00038999,30]
[423070476,1779817843000,-151.0,0.00038999,30]
[423070492,1779817843000,-151.0,0.00038999,30]
[423070494,1779817843000,-500.0,0.00038999,30]
[423070495,1779817843000,-500.0,0.00038999,30]
[423070497,1779817843000,-560.38385811,0.00038999,30]
[423070502,1779817843000,-151.0,0.00038999,30]
[423070499,1779817843000,-500.0,0.00038999,30]
[423070500,1779817843000,-500.0,0.00038999,30]
[423070498,1779817843000,-151.0,0.00038999,30]
[423070503,1779817843000,-500.0,0.00038999,30]
[423070501,1779817843000,-500.0,0.00038999,30]
[423070496,1779817843000,-500.0,0.00038999,30]
[423070447,1779817843000,-1148.61238259,0.00038999,30]
[423070491,1779817843000,-500.0,0.00038999,30]
[423070477,1779817843000,-500.0,0.00038999,30]
[423070490,1779817843000,-670.58624095,0.00038999,30]
[423070479,1779817843000,-206.334228,0.00038999,30]
[423070473,1779817843000,-500.0,0.00038999,30]
[423070454,1779817843000,-1109.05666332,0.00038999,30]
[423070453,1779817843000,-1613.0535,0.00038999,30]
[423070452,1779817843000,-579.88197956,0.00038999,30]
[423070450,1779817843000,-172.05904,0.00038999,30]
[423070455,1779817843000,-7199.89256852,0.00038999,30]
[423070457,1779817843000,-500.0,0.00038999,30]
[423070459,1779817843000,-1672.7364795,0.00038999,30]
[423070461,1779817843000,-500.0,0.00038999,30]
[423070463,1779817843000,-601.3376128,0.00038999,30]
[423070462,1779817843000,-151.0,0.00038999,30]
[423070467,1779817843000,-1734.62772924,0.00038999,30]
[423070460,1779817843000,-178.42522448,0.00038999,30]
[423070449,1779817843000,-500.0,0.00038999,30]
[423070474,1779817843000,-1798.80895522,0.00038999,30]
[423070464,1779817843000,-500.0,0.00038999,30]
[423070465,1779817843000,-185.02695778,0.00038999,30]
[423070458,1779817843000,-500.0,0.00038999,30]
[423070469,1779817843000,-500.0,0.00038999,30]
[423070466,1779817843000,-500.0,0.00038999,30]
[423070471,1779817843000,-191.87295522,0.00038999,30]
[423070481,1779817843000,-500.0,0.00038999,30]
[423070470,1779817843000,-500.0,0.00038999,30]
[423070475,1779817843000,-500.0,0.00038999,30]
[423070472,1779817843000,-623.58710447,0.00038999,30]
[423070468,1779817843000,-151.0,0.00038999,30]
[423070548,1779817844000,-200.0,0.00039118,6]
[423070546,1779817844000,-1000.0,0.00039116,2]
[423070540,1779817844000,-200.0,0.00039116,6]
[423070539,1779817844000,-200.0,0.00039116,6]
[423070534,1779817844000,-8705.99045426,0.00039096,2]
[423070556,1779817844000,-241.4,0.00039158,120]
[423070531,1779817844000,-164.52974774,0.00039096,2]
[423070532,1779817844000,-702.27967208,0.00039096,2]
[423070535,1779817844000,-245.0812081,0.000391,3]
[423070544,1779817844000,-1000.0,0.00039116,2]
[423070538,1779817844000,-200.0,0.00039116,6]
[423070543,1779817844000,-1000.0,0.00039116,2]
[423070555,1779817844000,-366.0,0.00039158,120]
[423070547,1779817844000,-1752.04033232,0.00039116,2]
[423070542,1779817844000,-1000.0,0.00039116,2]
[423070545,1779817844000,-1000.0,0.00039116,2]
[423070549,1779817844000,-200.0,0.00039118,6]
[423070559,1779817844000,-366.0,0.00039158,120]
[423070560,1779817844000,-405.0,0.00039158,120]
[423070550,1779817844000,-366.0,0.00039148,120]
[423070554,1779817844000,-405.0,0.00039148,120]
[423070552,1779817844000,-366.0,0.00039148,120]
[423070551,1779817844000,-405.0,0.00039148,120]
[423070557,1779817844000,-405.0,0.00039158,120]
[423070541,1779817844000,-200.0,0.00039116,6]
[423070529,1779817844000,-1291.44,0.00039092,2]
[423070504,1779817844000,-500.0,0.00038999,30]
[423070536,1779817844000,-157.58893018,0.000391,3]
[423070505,1779817844000,-500.0,0.00038999,30]
[423070508,1779817844000,-500.0,0.00038999,30]
[423070509,1779817844000,-500.0,0.00038999,30]
[423070507,1779817844000,-500.0,0.00038999,30]
[423070511,1779817844000,-500.0,0.00038999,30]
[423070513,1779817844000,-500.0,0.00038999,30]
[423070512,1779817844000,-500.0,0.00038999,30]
[423070516,1779817844000,-500.0,0.00038999,30]
[423070514,1779817844000,-500.0,0.00038999,30]
[423070515,1779817844000,-500.0,0.00038999,30]
[423070517,1779817844000,-500.0,0.00038999,30]
[423070530,1779817844000,-14256.94481353,0.00039096,2]
[423070510,1779817844000,-500.0,0.00038999,30]
[423070518,1779817844000,-500.0,0.00038999,30]
[423070521,1779817844000,-2000.0,0.00039,60]
[423070524,1779817844000,-375.0,0.00039024,2]
[423070522,1779817844000,-2000.0,0.00039,75]
[423070520,1779817844000,-222.49659857,0.00038999,30]
[423070526,1779817844000,-330.0,0.00039068,57]
[423070523,1779817844000,-156.56,0.00039008,120]
[423070525,1779817844000,-156.56,0.00039058,120]
[423070527,1779817844000,-20044.63878235,0.00039075,2]
[423070528,1779817844000,-10000.0,0.00039078,2]
[423070537,1779817844000,-156.56,0.00039108,120]
[423070519,1779817844000,-151.0,0.00038999,30]
[423070558,1779817844000,-164.44,0.00039158,120]
[423070583,1779817844000,-155.0,0.00039174,120]
[423070561,1779817844000,-156.56,0.00039158,120]
[423070593,1779817844000,-151.0,0.00039175,30]
[423070591,1779817844000,-158.0,0.00039175,120]
[423070590,1779817844000,-160.0,0.00039175,120]
[423070589,1779817844000,-164.0,0.00039175,120]
[423070598,1779817844000,-151.0,0.00039175,30]
[423070599,1779817844000,-151.0,0.00039175,30]
[423070597,1779817844000,-151.0,0.00039175,30]
[423070608,1779817844000,-151.0,0.00039175,30]
[423070607,1779817844000,-151.0,0.00039175,30]
[423070602,1779817844000,-151.0,0.00039175,30]
[423070604,1779817844000,-151.0,0.00039175,30]
[423070588,1779817844000,-160.0,0.00039175,120]
[423070601,1779817844000,-151.0,0.00039175,30]
[423070605,1779817844000,-151.0,0.00039175,30]
[423070606,1779817844000,-151.0,0.00039175,30]
[423070609,1779817844000,-205.090184,0.00039175,30]
[423070614,1779817844000,-151.0,0.00039175,30]
[423070613,1779817844000,-151.0,0.00039175,30]
[423070610,1779817844000,-151.0,0.00039175,30]
[423070616,1779817844000,-182.28346,0.00039175,30]
[423070612,1779817844000,-151.0,0.00039175,30]
[423070615,1779817844000,-151.0,0.00039175,30]
[423070611,1779817844000,-151.0,0.00039175,30]
[423070563,1779817844000,-957.0,0.00039167,30]
[423070603,1779817844000,-290.843842,0.00039175,30]
[423070594,1779817844000,-151.0,0.00039175,30]
[423070600,1779817844000,-151.0,0.00039175,30]
[423070595,1779817844000,-151.0,0.00039175,30]
[423070596,1779817844000,-151.0,0.00039175,30]
[423070565,1779817844000,-432.0,0.00039167,30]
[423070564,1779817844000,-957.0,0.00039167,30]
[423070562,1779817844000,-957.0,0.00039167,30]
[423070569,1779817844000,-150.5,0.00039168,120]
[423070566,1779817844000,-366.0,0.00039168,120]
[423070568,1779817844000,-405.0,0.00039168,120]
[423070571,1779817844000,-405.0,0.00039168,120]
[423070572,1779817844000,-235.75,0.0003917,14]
[423070570,1779817844000,-366.0,0.00039168,120]
[423070573,1779817844000,-718.3,0.0003917,120]
[423070584,1779817844000,-157.0,0.00039174,120]
[423070574,1779817844000,-6840.28095052,0.00039171,15]
[423070567,1779817844000,-150.5,0.00039168,120]
[423070575,1779817844000,-151.0,0.00039172,14]
[423070592,1779817844000,-151.0,0.00039175,30]
[423070585,1779817844000,-159.0,0.00039174,120]
[423070586,1779817844000,-157.0,0.00039174,120]
[423070582,1779817844000,-153.0,0.00039174,120]
[423070581,1779817844000,-168.0,0.00039174,120]
[423070587,1779817844000,-154.0,0.00039175,120]
[423070578,1779817844000,-300.0,0.00039174,10]
[423070579,1779817844000,-151.0,0.00039174,30]
[423070577,1779817844000,-300.0,0.00039173,10]
[423070576,1779817844000,-300.0,0.00039173,10]
[423070580,1779817844000,-159.0,0.00039174,120]
[423070660,1779817845000,-151.0,0.00039178,7]
[423070658,1779817845000,-151.0,0.00039178,7]
[423070656,1779817845000,-151.0,0.00039178,7]
[423070667,1779817845000,-300.0,0.00039178,57]
[423070655,1779817845000,-751.0,0.00039178,30]
[423070649,1779817845000,-854.0,0.00039178,30]
[423070654,1779817845000,-751.0,0.00039178,30]
[423070645,1779817845000,-861.0,0.00039178,30]
[423070653,1779817845000,-751.0,0.00039178,30]
[423070651,1779817845000,-751.0,0.00039178,30]
[423070666,1779817845000,-845.21981,0.00039178,110]
[423070652,1779817845000,-751.0,0.00039178,30]
[423070661,1779817845000,-245.0,0.00039178,7]
[423070677,1779817845000,-891.0,0.00039195,30]
[423070657,1779817845000,-151.0,0.00039178,7]
[423070665,1779817845000,-156.22835006,0.00039178,7]
[423070664,1779817845000,-152.0,0.00039178,7]
[423070662,1779817845000,-152.0,0.00039178,7]
[423070663,1779817845000,-152.0,0.00039178,7]
[423070669,1779817845000,-200.0,0.00039178,58]
[423070679,1779817845000,-2110.0,0.00039195,2]
[423070668,1779817845000,-300.0,0.00039178,60]
[423070673,1779817845000,-1025.34560963,0.0003919,7]
[423070675,1779817845000,-500.0,0.00039194,120]
[423070670,1779817845000,-250.0,0.00039178,59]
[423070672,1779817845000,-250.0,0.00039178,58]
[423070648,1779817845000,-854.0,0.00039178,30]
[423070659,1779817845000,-151.0,0.00039178,7]
[423070650,1779817845000,-751.0,0.00039178,30]
[423070621,1779817845000,-151.0,0.00039175,30]
[423070647,1779817845000,-854.0,0.00039178,30]
[423070618,1779817845000,-151.0,0.00039175,30]
[423070619,1779817845000,-151.0,0.00039175,30]
[423070617,1779817845000,-151.0,0.00039175,30]
[423070674,1779817845000,-1000.0,0.00039194,120]
[423070631,1779817845000,-151.0,0.00039178,7]
[423070620,1779817845000,-151.0,0.00039175,30]
[423070622,1779817845000,-2003.687569,0.00039175,30]
[423070624,1779817845000,-1000.0,0.00039177,30]
[423070626,1779817845000,-1000.0,0.00039177,120]
[423070629,1779817845000,-14698.3523431,0.00039178,2]
[423070628,1779817845000,-351.0879834,0.00039178,120]
[423070623,1779817845000,-1000.0,0.00039177,7]
[423070627,1779817845000,-1000.0,0.00039177,14]
[423070625,1779817845000,-1000.0,0.00039177,31]
[423070630,1779817845000,-983.2916496,0.00039178,2]
[423070634,1779817845000,-155.55224971,0.00039178,7]
[423070637,1779817845000,-1544.0,0.00039178,7]
[423070639,1779817845000,-1544.0,0.00039178,7]
[423070633,1779817845000,-151.0,0.00039178,7]
[423070632,1779817845000,-151.0,0.00039178,7]
[423070635,1779817845000,-1544.0,0.00039178,7]
[423070636,1779817845000,-1544.0,0.00039178,7]
[423070642,1779817845000,-1544.0,0.00039178,7]
[423070643,1779817845000,-1544.0,0.00039178,7]
[423070640,1779817845000,-1544.0,0.00039178,7]
[423070638,1779817845000,-1544.0,0.00039178,7]
[423070646,1779817845000,-861.0,0.00039178,30]
[423070644,1779817845000,-406.82918514,0.00039178,7]
[423070671,1779817845000,-1548.0,0.00039178,30]
[423070641,1779817845000,-1544.0,0.00039178,7]
[423070678,1779817845000,-294.0,0.00039195,30]
[423070710,1779817845000,-500.0,0.00039196,120]
[423070712,1779817845000,-158.96653013,0.00039196,120]
[423070713,1779817845000,-500.0,0.00039196,120]
[423070711,1779817845000,-500.0,0.00039196,120]
[423070714,1779817845000,-500.0,0.00039196,120]
[423070715,1779817845000,-902.51,0.00039196,120]
[423070719,1779817845000,-902.51,0.00039196,120]
[423070720,1779817845000,-1266.5,0.00039196,120]
[423070721,1779817845000,-500.0,0.00039196,120]
[423070726,1779817845000,-500.0,0.00039196,120]
[423070718,1779817845000,-500.0,0.00039196,120]
[423070723,1779817845000,-902.51,0.00039196,120]
[423070732,1779817845000,-500.0,0.00039196,120]
[423070735,1779817845000,-500.0,0.00039196,120]
[423070724,1779817845000,-1266.5,0.00039196,120]
[423070728,1779817845000,-902.51,0.00039196,120]
[423070730,1779817845000,-1266.5,0.00039196,120]
[423070722,1779817845000,-500.0,0.00039196,120]
[423070749,1779817845000,-902.51,0.00039196,120]
[423070748,1779817845000,-500.0,0.00039196,120]
[423070747,1779817845000,-1266.5,0.00039196,120]
[423070739,1779817845000,-1266.5,0.00039196,120]
[423070738,1779817845000,-902.51,0.00039196,120]
[423070743,1779817845000,-500.0,0.00039196,120]
[423070745,1779817845000,-902.51,0.00039196,120]
[423070741,1779817845000,-500.0,0.00039196,120]
[423070676,1779817845000,-10357.27996137,0.00039195,14]
[423070717,1779817845000,-500.0,0.00039196,120]
[423070707,1779817845000,-500.0,0.00039196,120]
[423070725,1779817845000,-500.0,0.00039196,120]
[423070708,1779817845000,-500.0,0.00039196,120]
[423070680,1779817845000,-363.12000829,0.00039196,120]
[423070716,1779817845000,-1266.5,0.00039196,120]
[423070685,1779817845000,-151.0,0.00039196,30]
[423070684,1779817845000,-151.0,0.00039196,30]
[423070689,1779817845000,-2003.687569,0.00039196,30]
[423070687,1779817845000,-151.0,0.00039196,30]
[423070682,1779817845000,-151.0,0.00039196,30]
[423070692,1779817845000,-500.0,0.00039196,120]
[423070691,1779817845000,-201.89242664,0.00039196,120]
[423070688,1779817845000,-2003.687569,0.00039196,30]
[423070681,1779817845000,-63178.9892993,0.00039196,32]
[423070683,1779817845000,-151.0,0.00039196,30]
[423070686,1779817845000,-151.0,0.00039196,30]
[423070694,1779817845000,-500.0,0.00039196,120]
[423070690,1779817845000,-27.22943475,0.00039196,120]
[423070696,1779817845000,-500.0,0.00039196,120]
[423070706,1779817845000,-500.0,0.00039196,120]
[423070709,1779817845000,-500.0,0.00039196,120]
[423070693,1779817845000,-500.0,0.00039196,120]
[423070705,1779817845000,-500.0,0.00039196,120]
[423070703,1779817845000,-500.0,0.00039196,120]
[423070702,1779817845000,-500.0,0.00039196,120]
[423070697,1779817845000,-500.0,0.00039196,120]
[423070701,1779817845000,-247.48791809,0.00039196,120]
[423070698,1779817845000,-500.0,0.00039196,120]
[423070695,1779817845000,-500.0,0.00039196,120]
[423070699,1779817845000,-351.56700654,0.00039196,120]
[423070700,1779817845000,-500.0,0.00039196,120]
[423070704,1779817845000,-615.7667607,0.00039196,120]
[423070775,1779817846000,-1266.5,0.00039196,120]
[423070768,1779817846000,-902.51,0.00039196,120]
[423070772,1779817846000,-1266.5,0.00039196,120]
[423070773,1779817846000,-902.51,0.00039196,120]
[423070767,1779817846000,-500.0,0.00039196,120]
[423070771,1779817846000,-500.0,0.00039196,120]
[423070777,1779817846000,-902.51,0.00039196,120]
[423070785,1779817846000,-500.0,0.00039196,120]
[423070778,1779817846000,-500.0,0.00039196,120]
[423070784,1779817846000,-500.0,0.00039196,120]
[423070779,1779817846000,-1266.5,0.00039196,120]
[423070781,1779817846000,-500.0,0.00039196,120]
[423070783,1779817846000,-500.0,0.00039196,120]
[423070770,1779817846000,-902.51,0.00039196,120]
[423070786,1779817846000,-1266.5,0.00039196,120]
[423070780,1779817846000,-902.51,0.00039196,120]
[423070776,1779817846000,-500.0,0.00039196,120]
[423070755,1779817846000,-500.0,0.00039196,120]
[423070774,1779817846000,-500.0,0.00039196,120]
[423070782,1779817846000,-1266.5,0.00039196,120]
[423070753,1779817846000,-500.0,0.00039196,120]
[423070752,1779817846000,-500.0,0.00039196,120]
[423070750,1779817846000,-500.0,0.00039196,120]
[423070751,1779817846000,-1266.5,0.00039196,120]
[423070766,1779817846000,-1266.5,0.00039196,120]
[423070765,1779817846000,-902.51,0.00039196,120]
[423070754,1779817846000,-902.51,0.00039196,120]
[423070757,1779817846000,-543.14338243,0.00039196,120]
[423070756,1779817846000,-1266.5,0.00039196,120]
[423070759,1779817846000,-366.82417098,0.00039196,120]
[423070764,1779817846000,-500.0,0.00039196,120]
[423070762,1779817846000,-902.51,0.00039196,120]
[423070761,1779817846000,-1266.5,0.00039196,120]
[423070763,1779817846000,-1266.5,0.00039196,120]
[423070760,1779817846000,-902.51,0.00039196,120]
[423070758,1779817846000,-500.0,0.00039196,120]
[423070769,1779817846000,-1266.5,0.00039196,120]
[423070788,1779817846000,-500.0,0.00039196,120]
[423070798,1779817846000,-500.0,0.00039196,120]
[423070789,1779817846000,-500.0,0.00039196,120]
[423070811,1779817846000,-902.51,0.00039196,120]
[423070810,1779817846000,-1266.5,0.00039196,120]
[423070812,1779817846000,-500.0,0.00039196,120]
[423070813,1779817846000,-500.0,0.00039196,120]
[423070815,1779817846000,-902.51,0.00039196,120]
[423070816,1779817846000,-500.0,0.00039196,120]
[423070817,1779817846000,-826.63427139,0.00039196,120]
[423070814,1779817846000,-1266.5,0.00039196,120]
[423070820,1779817846000,-902.51,0.00039196,120]
[423070825,1779817846000,-902.59,0.00039196,120]
[423070823,1779817846000,-500.0,0.00039196,120]
[423070826,1779817846000,-582.19448145,0.00039196,120]
[423070827,1779817846000,-500.0,0.00039196,120]
[423070829,1779817846000,-500.0,0.00039196,120]
[423070828,1779817846000,-500.0,0.00039196,120]
[423070787,1779817846000,-500.0,0.00039196,120]
[423070819,1779817846000,-439.86572861,0.00039196,120]
[423070807,1779817846000,-500.0,0.00039196,120]
[423070821,1779817846000,-500.0,0.00039196,120]
[423070804,1779817846000,-500.0,0.00039196,120]
[423070796,1779817846000,-902.51,0.00039196,120]
[423070806,1779817846000,-902.51,0.00039196,120]
[423070795,1779817846000,-1266.5,0.00039196,120]
[423070790,1779817846000,-1266.5,0.00039196,120]
[423070791,1779817846000,-902.51,0.00039196,120]
[423070793,1779817846000,-500.0,0.00039196,120]
[423070792,1779817846000,-500.0,0.00039196,120]
[423070794,1779817846000,-467.46048501,0.00039196,120]
[423070797,1779817846000,-500.0,0.00039196,120]
[423070799,1779817846000,-205.52128834,0.00039196,120]
[423070800,1779817846000,-1266.5,0.00039196,120]
[423070802,1779817846000,-500.0,0.00039196,120]
[423070801,1779817846000,-902.51,0.00039196,120]
[423070803,1779817846000,-500.0,0.00039196,120]
[423070805,1779817846000,-1266.5,0.00039196,120]
[423070809,1779817846000,-500.0,0.00039196,120]
[423070808,1779817846000,-153.80913008,0.00039196,120]
[423070859,1779817847000,-699.02,0.00039196,120]
[423070860,1779817847000,-1782.9,0.00039196,120]
[423070861,1779817847000,-625.87957575,0.00039196,120]
[423070854,1779817847000,-500.0,0.00039196,120]
[423070856,1779817847000,-157.25577044,0.00039196,120]
[423070853,1779817847000,-269.25820952,0.00039196,120]
[423070864,1779817847000,-1782.9,0.00039196,120]
[423070865,1779817847000,-500.0,0.00039196,120]
[423070855,1779817847000,-274.88,0.00039196,90]
[423070862,1779817847000,-500.0,0.00039196,120]
[423070871,1779817847000,-1782.9,0.00039196,120]
[423070867,1779817847000,-1193.20994959,0.00039196,120]
[423070866,1779817847000,-699.02,0.00039196,120]
[423070870,1779817847000,-278.7,0.00039196,120]
[423070869,1779817847000,-589.69005041,0.00039196,120]
[423070872,1779817847000,-500.0,0.00039196,120]
[423070868,1779817847000,-2003.687569,0.00039196,30]
[423070874,1779817847000,-699.02,0.00039196,120]
[423070876,1779817847000,-500.0,0.00039196,120]
[423070857,1779817847000,-1782.9,0.00039196,120]